bitfinex-derivatives/quotes_SOLF0:USTF0_20250211
["timestamp","ask_amount","ask_price","bid_price","bid_amount"]
[1739302892719,7.372e-05,195.44,195.42,0.03820831]
[1739302893113,7.372e-05,195.44,195.43,5.1171]
[1739302894622,7.372e-05,195.44,195.43,19.24705143]
[1739302894925,7.372e-05,195.44,195.43,22.38345143]
[1739302895118,7.372e-05,195.44,195.43,8.2535]
[1739302895619,7.372e-05,195.44,195.43,5.1171]
[1739302897724,7.372e-05,195.44,195.43,19.24705143]
[1739302898326,7.372e-05,195.44,195.43,22.20235143]
[1739302899428,7.372e-05,195.44,195.43,8.0724]
[1739302899726,7.372e-05,195.44,195.43,22.20235143]
[1739302899924,7.372e-05,195.44,195.43,23.74655143]
[1739302902821,4.5327,195.55,195.5,5.1151]
[1739302903324,4.5327,195.55,195.43,18.62945143]
[1739302903531,14.12995143,195.59,195.46,14.12995143]
[1739302904028,0.0366068,195.54,195.51,0.03662546]
[1739302904830,0.0366068,195.54,195.51,5.15162546]
[1739302905330,0.0366068,195.54,195.51,0.03662546]
[1739302906227,0.0366068,195.54,195.51,5.15162546]
[1739302906423,0.0366068,195.54,195.51,0.03662546]
[1739302906630,0.0366068,195.54,195.52,5.1148]
[1739302907233,0.0366068,195.54,195.51,0.03662546]
[1739302907434,0.0366068,195.54,195.53,5.1145]
[1739302909735,6.8e-06,195.54,195.53,5.1145]
[1739302910637,18.74445143,195.65,195.52,17.22735143]
[1739302910826,1.5737,195.65,195.55,14.12995143]
[1739302911426,1.5737,195.65,195.62,5.1121]
[1739302911636,143.01550085,195.7,195.62,5.1121]
[1739302911846,0.03548594,195.65,195.62,5.14580986]
[1739302912338,0.03548594,195.65,195.62,0.03370986]
[1739302920648,0.03548594,195.65,195.64,19.24155143]
[1739302921249,0.03548594,195.65,195.64,5.1116]
[1739302922149,0.03548594,195.65,195.62,0.03370986]
[1739302922346,0.03548594,195.65,195.62,5.14580986]
[1739302922548,0.03548594,195.65,195.62,0.03370986]
[1739302925654,0.03548594,195.65,195.64,5.1116]
[1739302926654,0.03548594,195.65,195.64,19.24155143]
[1739302927253,18.85105143,195.77,195.64,14.12995143]
[1739302927449,5.1093,195.73,195.64,14.12995143]
[1739302927855,5.1093,195.73,195.69,5.1103]
[1739302928450,5.14239767,195.73,195.69,5.1489583]
[1739302928756,5.14239767,195.73,195.69,0.0386583]
[1739302929055,5.11,195.71,195.69,0.0386583]
[1739302929360,0.03309767,195.73,195.69,0.0386583]
[1739302930854,5.14239767,195.73,195.69,5.1488583]
[1739302931054,0.03309767,195.73,195.69,0.0386583]
[1739302931553,5.14239767,195.73,195.69,0.0386583]
[1739302931750,0.03309767,195.73,195.69,0.0386583]
[1739302933851,0.03309767,195.73,195.69,5.1489583]
[1739302934058,0.03309767,195.73,195.7,14.12995143]
[1739302934454,4.5848,195.84,195.7,28.25990286]
[1739302934654,4.5848,195.84,195.75,14.12995143]
[1739302935158,18.71475143,195.84,195.72,14.12995143]
[1739302935355,18.71475143,195.84,195.7,1.5163]
[1739302935356,5.1083,195.77,195.7,1.5163]
[1739302935654,0.03290767,195.8,195.76,0.03565111]
[1739302935858,14.12995143,195.81,195.69,14.12995143]
[1739302936154,0.03738704,195.8,195.76,0.03414807]
[1739302936357,18.71475143,195.84,195.72,14.12995143]
[1739302936659,0.03928708,195.8,195.76,0.03371563]
[1739302937160,5.14678708,195.8,195.76,0.03371563]
[1739302937660,0.03928708,195.8,195.76,5.14201563]
[1739302937859,0.03928708,195.8,195.76,0.03371563]
[1739302938251,5.14678708,195.8,195.76,0.03371563]
[1739302939657,5.14678708,195.8,195.76,5.14221563]
[1739302939858,5.1078,195.79,195.76,0.03371563]
[1739302940061,0.03928708,195.8,195.76,0.03371563]
[1739302940263,5.1078,195.79,195.76,0.03371563]
[1739302941260,0.03928708,195.8,195.76,0.03371563]
[1739302941754,5.1078,195.79,195.76,0.03371563]
[1739302942062,0.03928708,195.8,195.76,0.03371563]
[1739302942962,5.1078,195.79,195.76,0.03371563]
[1739302943159,0.03928708,195.8,195.76,0.03371563]
[1739302944363,5.1078,195.79,195.76,0.03371563]
[1739302944563,0.03928708,195.8,195.76,0.03371563]
[1739302946458,14.12995143,195.78,195.76,0.03371563]
[1739302946761,5.1083,195.77,195.76,0.03371563]
[1739302947267,0.03928708,195.8,195.76,0.03371563]
[1739302947461,5.108,195.78,195.76,0.03371563]
[1739302947968,0.03928708,195.8,195.76,0.03371563]
[1739302948156,5.1083,195.77,195.76,0.03371563]
[1739302948657,5.1081,195.78,195.76,0.03371563]
[1739302949266,5.14698708,195.8,195.76,0.03371563]
[1739302950266,0.03928708,195.8,195.76,5.14211563]
[1739302950766,0.03928708,195.8,195.76,0.03371563]
[1739302950962,5.14678708,195.8,195.76,0.03371563]
[1739302951560,0.03928708,195.8,195.76,5.14211563]
[1739302953169,5.14698708,195.8,195.76,0.03371563]
[1739302953364,0.03928708,195.8,195.76,0.03371563]
[1739302953869,5.1083,195.77,195.76,0.03371563]
[1739302954272,14.12995143,195.78,195.63,14.12995143]
[1739302954469,14.12995143,195.75,195.63,14.12995143]
[1739302954769,14.12995143,195.72,195.65,5.1112]
[1739302954972,14.12995143,195.72,195.62,4.5926]
[1739302955266,5.11,195.71,195.62,4.5926]
[1739302955463,0.03830887,195.69,195.66,5.1109]
[1739302957570,0.03830887,195.69,195.65,0.03394732]
[1739302957773,5.14870887,195.69,195.65,0.03394732]
[1739302958475,14.1682603,195.69,195.65,0.03394732]
[1739302958870,5.1111,195.66,195.65,0.03394732]
[1739302960671,14.1682603,195.69,195.65,0.03394732]
[1739302960877,5.1109,195.67,195.65,0.03394732]
[1739302961579,5.1111,195.66,195.65,0.03394732]
[1739302961778,14.1682603,195.69,195.65,0.03394732]
[1739302963482,19.2788603,195.69,195.65,0.03394732]
[1739302963877,5.14890887,195.69,195.65,0.03394732]
[1739302964389,0.03830887,195.69,195.65,0.03394732]
[1739302964878,5.1108,195.68,195.65,0.03394732]
[1739302965079,0.03830887,195.69,195.65,0.03394732]
[1739302965280,14.1682603,195.69,195.65,0.03394732]
[1739302965480,5.1108,195.68,195.65,0.03394732]
[1739302966476,14.1682603,195.69,195.65,0.03394732]
[1739302966671,0.03830887,195.69,195.65,0.03394732]
[1739302966871,14.1682603,195.69,195.65,0.03394732]
[1739302967282,5.1111,195.66,195.65,0.03394732]
[1739302967673,5.111,195.67,195.65,0.03394732]
[1739302968179,14.1682603,195.69,195.65,0.03394732]
[1739302968377,5.1111,195.66,195.65,0.03394732]
[1739302970180,5.1123,195.62,195.54,14.12995143]
[1739302970375,14.12995143,195.63,195.57,5.1132]
[1739302970579,14.12995143,195.63,195.51,18.53385143]
[1739302970779,5.1132,195.59,195.53,5.1143]
[1739302970979,5.1132,195.59,195.51,18.53385143]
[1739302971280,0.03250316,195.57,195.53,0.03871405]
[1739302971784,0.03250316,195.57,195.54,5.114]
[1739302972175,0.03250316,195.57,195.53,0.03871405]
[1739302972373,0.03250316,195.57,195.56,5.1137]
[1739302976582,0.03250316,195.57,195.53,5.15301405]
[1739302976778,5.14620316,195.57,195.53,5.15301405]
[1739302976987,0.03250316,195.57,195.53,0.03871405]
[1739302977687,0.03250316,195.57,195.56,5.1137]
[1739302979988,0.03250316,195.57,195.55,5.1139]
[1739302980589,0.03250316,195.57,195.53,0.03871405]
[1739302980787,5.14620316,195.57,195.53,0.03871405]
[1739302981390,0.03250316,195.57,195.53,0.03871405]
[1739302982089,0.03250316,195.57,195.56,5.1137]
[1739302983691,3.16e-06,195.57,195.56,5.1137]
[1739302984289,3.16e-06,195.57,195.53,0.03871405]
[1739302984488,3.16e-06,195.57,195.55,5.1139]
[1739302984891,3.16e-06,195.57,195.56,5.1137]
[1739302985090,3.16e-06,195.57,195.53,0.03871405]
[1739302985592,3.16e-06,195.57,195.54,5.1142]
[1739302986588,3.16e-06,195.57,195.53,0.03871405]
[1739302987296,5.11350316,195.57,195.53,0.03871405]
[1739302987491,3.16e-06,195.57,195.53,0.03871405]
[1739302987793,14.12995459,195.57,195.53,0.03871405]
[1739302988096,5.1138,195.56,195.53,0.03871405]
[1739302988394,3.16e-06,195.57,195.53,0.03871405]
[1739302988592,3.16e-06,195.57,195.54,5.1142]
[1739302988785,3.16e-06,195.57,195.53,0.03871405]
[1739302989488,3.16e-06,195.57,195.54,5.1142]
[1739302989793,3.16e-06,195.57,195.53,0.03871405]
[1739302991390,3.16e-06,195.57,195.56,5.1137]
[1739302991590,3.16e-06,195.57,195.53,0.03871405]
[1739302991997,3.16e-06,195.57,195.54,5.114]
[1739302992185,3.16e-06,195.57,195.53,0.03871405]
[1739302993088,14.12995459,195.57,195.53,0.03871405]
[1739302993695,5.1143,195.54,195.53,0.03871405]
[1739302996100,3.16e-06,195.57,195.53,0.03871405]
[1739302996594,5.1138,195.56,195.53,0.03871405]
[1739302996800,3.16e-06,195.57,195.53,0.03871405]
[1739302997098,5.11370316,195.57,195.53,0.03871405]
[1739302997297,3.16e-06,195.57,195.53,0.03871405]
[1739302997903,5.114,195.56,195.53,0.03871405]
[1739302998297,3.16e-06,195.57,195.53,0.03871405]
[1739302998999,5.11360316,195.57,195.53,0.03871405]
[1739302999201,3.16e-06,195.57,195.53,0.03871405]
[1739303000398,14.12995459,195.57,195.53,0.03871405]
[1739303000599,3.16e-06,195.57,195.53,0.03871405]
[1739303000999,5.1138,195.56,195.53,0.03871405]
[1739303001300,3.16e-06,195.57,195.53,0.03871405]
[1739303001601,5.1143,195.54,195.53,0.03871405]
[1739303002399,14.12995143,195.54,195.42,14.12995143]
[1739303002600,14.12995143,195.54,195.44,5.1168]
[1739303002800,3.1318,195.53,195.42,14.12995143]
[1739303003104,3.1318,195.53,195.44,5.1167]
[1739303003507,5.15147154,195.5,195.47,0.03872469]
[1739303003707,0.03597154,195.5,195.47,0.03872469]
[1739303004306,5.1158,195.48,195.47,0.03872469]
[1739303004703,0.03597154,195.5,195.47,0.03872469]
[1739303006207,5.1158,195.49,195.47,0.03872469]
[1739303006707,0.03597154,195.5,195.47,0.03872469]
[1739303008602,5.1158,195.49,195.47,0.03872469]
[1739303008802,0.03597154,195.5,195.47,0.03872469]
[1739303009307,5.1158,195.48,195.47,0.03872469]
[1739303010212,5.1156,195.49,195.47,0.03872469]
[1739303010415,1.49687154,195.5,195.47,0.03872469]
[1739303011213,0.03597154,195.5,195.47,0.03872469]
[1739303012313,0.03597154,195.5,195.48,5.1158]
[1739303013112,0.03597154,195.5,195.47,0.03872469]
[1739303013417,0.03597154,195.5,195.49,5.1156]
[1739303018919,0.03597154,195.5,195.47,0.03872469]
[1739303019320,0.03597154,195.5,195.48,14.12995143]
[1739303019622,0.03597154,195.5,195.49,5.1156]
[1739303022326,5.1135,195.57,195.54,5.1141]
[1739303022528,5.1135,195.57,195.51,14.12995143]
[1739303023126,4.5454,195.62,195.51,14.12995143]
[1739303023325,5.1138,195.56,195.51,14.12995143]
[1739303023526,5.1138,195.56,195.55,0.03375294]
[1739303023727,5.1136,195.57,195.55,0.03375294]
[1739303025230,0.03296497,195.58,195.55,0.03375294]
[1739303026025,5.1135,195.57,195.55,0.03375294]
[1739303027035,5.1137,195.56,195.55,0.03375294]
[1739303027527,0.03296497,195.58,195.55,0.03375294]
[1739303029628,0.03296497,195.58,195.57,5.1135]
[1739303030722,0.03296497,195.58,195.55,0.03375294]
[1739303030723,0.03296497,195.58,195.56,5.1137]
[1739303030922,0.03296497,195.58,195.55,0.03375294]
[1739303033325,0.03296497,195.58,195.57,5.1135]
[1739303034728,0.03296497,195.58,195.55,0.03375294]
[1739303048241,0.03296497,195.58,195.55,5.14775294]
[1739303048443,0.03296497,195.58,195.55,0.03375294]
[1739303057953,14.12995143,195.57,195.55,0.03375294]
[1739303062251,5.1137,195.56,195.55,0.03375294]
[1739303062449,14.12995143,195.57,195.45,3.1741]
[1739303062652,4.7259,195.59,195.44,1.4681]
[1739303062653,14.12995143,195.53,195.44,1.4681]
[1739303062956,5.1157,195.49,195.44,1.4681]
[1739303063547,0.03381689,195.48,195.45,0.03426653]
[1739303064459,0.03381689,195.48,195.45,5.15066653]
[1739303066548,0.03381689,195.48,195.46,5.1163]
[1739303068158,0.03381689,195.48,195.45,0.03426653]
[1739303068358,0.03381689,195.48,195.47,5.1161]
[1739303068657,18.85585143,195.59,195.47,14.12995143]
[1739303068956,5.1138,195.56,195.47,14.12995143]
[1739303069158,11.03245314,195.6,195.5,14.12995143]
[1739303069459,14.12995143,195.62,195.5,14.12995143]
[1739303069659,9.03924783,195.59,195.53,14.15354783]
[1739303069860,0.03236662,195.58,195.54,0.03593617]
[1739303070356,0.03236662,195.58,195.54,5.15003617]
[1739303070657,0.03236662,195.58,195.54,0.03593617]
[1739303071355,5.1135,195.57,195.54,0.03593617]
[1739303071660,0.03236662,195.58,195.54,0.03593617]
[1739303073168,0.03236662,195.58,195.55,5.1139]
[1739303073363,0.03236662,195.58,195.54,0.03593617]
[1739303073665,0.03236662,195.58,195.56,5.1137]
[1739303075161,0.03236662,195.58,195.57,5.1135]
[1739303075562,5.112,195.63,195.55,14.1245954]
[1739303076263,14.1245954,195.67,195.55,14.1245954]
[1739303076467,11.03245314,195.68,195.58,14.1245954]
[1739303076670,0.03245701,195.63,195.59,0.03403997]
[1739303079371,5.1122,195.62,195.59,0.03403997]
[1739303080572,0.03245701,195.63,195.59,0.03403997]
[1739303080875,5.14445701,195.63,195.59,0.03403997]
[1739303081571,5.1122,195.62,195.59,0.03403997]
[1739303082271,0.03245701,195.63,195.59,0.03403997]
[1739303082570,5.1124,195.62,195.59,0.03403997]
[1739303082769,0.03245701,195.63,195.59,0.03403997]
[1739303083371,5.1122,195.62,195.59,0.03403997]
[1739303085078,5.1125,195.61,195.59,0.03403997]
[1739303085876,0.03245701,195.63,195.59,0.03403997]
[1739303086380,5.1124,195.62,195.59,0.03403997]
[1739303088780,0.03245701,195.63,195.59,0.03403997]
[1739303089285,0.03245701,195.63,195.6,14.1245954]
[1739303089781,0.03245701,195.63,195.59,0.03403997]
[1739303090585,5.14455701,195.63,195.59,0.03403997]
[1739303090782,0.03245701,195.63,195.59,0.03403997]
[1739303090984,5.1126,195.61,195.59,0.03403997]
[1739303091384,0.03245701,195.63,195.59,0.03403997]
[1739303091583,14.14920356,195.62,195.59,0.03403997]
[1739303091783,9.03680356,195.62,195.59,0.03403997]
[1739303092183,5.1126,195.61,195.59,0.03403997]
[1739303092485,9.03680356,195.62,195.59,0.03403997]
[1739303094185,5.1126,195.61,195.59,0.03403997]
[1739303094380,0.03245701,195.63,195.59,0.03403997]
[1739303094575,0.03245701,195.63,195.59,9.07084353]
[1739303094780,0.03245701,195.63,195.61,9.03680356]
[1739303095186,0.03245701,195.63,195.59,9.07084353]
[1739303095584,0.03245701,195.63,195.59,14.18374353]
[1739303095779,0.03245701,195.63,195.59,9.07084353]
[1739303096079,0.03245701,195.63,195.59,0.03403997]
[1739303096285,5.14435701,195.63,195.59,0.03403997]
[1739303097085,0.03245701,195.63,195.6,5.1126]
[1739303097682,0.03245701,195.63,195.61,9.03680356]
[1739303098283,9.03680356,195.7,195.61,9.03680356]
[1739303098586,9.03680356,195.7,195.63,9.03680356]
[1739303099184,5.111,195.67,195.63,9.03680356]
[1739303099380,5.111,195.67,195.65,0.03753212]
[1739303099683,5.14481587,195.68,195.65,0.03753212]
[1739303100586,5.1111,195.66,195.65,0.03753212]
[1739303100786,0.03401587,195.68,195.65,0.03753212]
[1739303102787,5.1111,195.66,195.65,0.03753212]
[1739303103587,19.22054564,195.66,195.65,0.03753212]
[1739303103787,5.112,195.63,195.57,5.1135]
[1739303104588,5.1116,195.64,195.58,5.113]
[1739303104792,14.10944564,195.66,195.54,14.10944564]
[1739303104987,0.03906967,195.63,195.59,0.03827437]
[1739303105391,5.1124,195.62,195.59,0.03827437]
[1739303105593,0.03906967,195.63,195.59,0.03827437]
[1739303106392,14.14851531,195.63,195.59,0.03827437]
[1739303107587,5.1122,195.62,195.59,0.03827437]
[1739303107783,14.14851531,195.63,195.59,0.03827437]
[1739303107984,5.1127,195.6,195.59,0.03827437]
[1739303108584,5.1127,195.6,195.49,2.9876]
[1739303108585,14.10944564,195.6,195.49,2.9876]
[1739303108793,14.10944564,195.57,195.45,15.66024564]
[1739303109194,5.115,195.52,195.45,15.66024564]
[1739303109392,14.10944564,195.57,195.45,15.66024564]
[1739303109591,14.10944564,195.54,195.45,6.6674]
[1739303109794,0.0324383,195.53,195.49,0.03662352]
[1739303110293,5.1153,195.5,195.49,0.03662352]
[1739303111794,5.1163,195.47,195.39,1.5348]
[1739303111988,14.10944564,195.48,195.37,31.2847319]
[1739303112190,19.22524564,195.48,195.4,5.1178]
[1739303112392,14.10944564,195.48,195.37,31.2847319]
[1739303112791,0.03908492,195.44,195.41,0.03636029]
[1739303113898,5.15598492,195.44,195.41,0.03636029]
[1739303115895,0.03908492,195.44,195.41,0.03636029]
[1739303116696,5.1174,195.42,195.41,0.03636029]
[1739303116998,0.03908492,195.44,195.41,0.03636029]
[1739303117299,5.1174,195.42,195.41,0.03636029]
[1739303118002,5.1172,195.43,195.41,0.03636029]
[1739303118198,0.03908492,195.44,195.41,0.03636029]
[1739303119102,0.03908492,195.44,195.43,5.1171]
[1739303119502,0.03908492,195.44,195.42,5.1174]
[1739303120298,0.03908492,195.44,195.41,0.03636029]
[1739303121002,0.03908492,195.44,195.43,5.1171]
[1739303121705,4.6519,195.56,195.47,5.116]
[1739303121901,14.10944564,195.58,195.45,14.10944564]
[1739303122105,14.10944564,195.58,195.43,3.0907]
[1739303122106,15.62064564,195.61,195.48,14.10944564]
[1739303122605,15.62064564,195.61,195.51,14.10944564]
[1739303122806,1.5112,195.61,195.51,14.10944564]
[1739303123105,0.03829492,195.58,195.54,0.03324058]
[1739303123502,5.1135,195.57,195.54,0.03324058]
[1739303123704,0.03829492,195.58,195.54,0.03324058]
[1739303124401,0.03829492,195.58,195.54,14.14268622]
[1739303124906,0.03829492,195.58,195.57,19.22294564]
[1739303125407,4.6395,195.68,195.57,14.10944564]
[1739303125702,5.1113,195.66,195.57,14.10944564]
[1739303125908,14.10944564,195.7,195.6,14.10944564]
[1739303126606,0.03405633,195.67,195.63,0.0392379]
[1739303126806,5.14495633,195.67,195.63,0.0392379]
[1739303127302,0.03405633,195.67,195.63,0.0392379]
[1739303128308,0.03405633,195.67,195.65,5.1113]
[1739303128514,0.03405633,195.67,195.63,0.0392379]
[1739303128911,0.03405633,195.67,195.64,5.1114]
[1739303129109,0.03405633,195.67,195.63,0.0392379]
[1739303129505,0.03405633,195.67,195.66,5.1111]
[1739303131815,0.03405633,195.67,195.63,5.1508379]
[1739303132016,0.03405633,195.67,195.63,0.0392379]
[1739303133214,0.03405633,195.67,195.63,14.14868354]
[1739303133513,0.03405633,195.67,195.66,5.1111]
[1739303134517,0.03405633,195.67,195.64,5.1114]
[1739303135319,0.03405633,195.67,195.63,0.0392379]
[1739303135617,0.03405633,195.67,195.65,5.1113]
[1739303136614,0.03405633,195.67,195.64,5.1116]
[1739303136816,0.03405633,195.67,195.63,0.0392379]
[1739303137317,5.1112,195.66,195.63,0.0392379]
[1739303137517,0.03405633,195.67,195.63,0.0392379]
[1739303139413,0.03405633,195.67,195.66,5.1111]
[1739303140416,0.03405633,195.67,195.63,0.0392379]
[1739303140619,0.03405633,195.67,195.65,5.1114]
[1739303141020,0.03405633,195.67,195.63,0.0392379]
[1739303141620,0.03405633,195.67,195.64,5.1116]
[1739303141922,0.03405633,195.67,195.63,0.0392379]
[1739303142423,0.03405633,195.67,195.64,5.1114]
[1739303142625,0.03405633,195.67,195.63,0.0392379]
[1739303143721,0.03405633,195.67,195.65,5.1113]
[1739303144024,0.03405633,195.67,195.63,0.0392379]
[1739303144823,14.14350197,195.67,195.63,0.0392379]
[1739303145020,5.1116,195.64,195.63,0.0392379]
[1739303145528,14.14350197,195.67,195.54,14.10944564]
[1739303145828,14.10944564,195.61,195.52,1.517]
[1739303146027,14.10944564,195.61,195.51,1.4656]
[1739303146822,5.14660204,195.58,195.54,0.03370695]
[1739303147226,0.03320204,195.58,195.54,0.03370695]
[1739303147428,5.14650204,195.58,195.54,0.03370695]
[1739303147622,0.03320204,195.58,195.54,0.03370695]
[1739303148635,14.14264768,195.58,195.54,0.03370695]
[1739303148828,5.114,195.55,195.54,0.03370695]
[1739303149033,19.22344564,195.55,195.54,0.03370695]
[1739303149234,5.1153,195.5,195.43,3.0965]
[1739303149725,14.10944564,195.55,195.43,3.0965]
[1739303149726,5.1156,195.49,195.43,3.0965]
[1739303149932,5.1156,195.49,195.43,1.5446]
[1739303150131,14.10944564,195.52,195.42,1.5057]
[1739303150325,0.03553967,195.48,195.44,0.03587534]
[1739303151630,5.1166,195.45,195.44,0.03587534]
[1739303152138,14.10944564,195.46,195.34,3.0365]
[1739303152434,5.1179,195.41,195.34,3.0365]
[1739303152634,14.10944564,195.46,195.34,3.0365]
[1739303152836,5.1172,195.43,195.34,3.0365]
[1739303153333,0.03578859,195.4,195.37,0.03015503]
[1739303154636,5.1182,195.39,195.37,0.03015503]
[1739303155033,0.03578859,195.4,195.37,0.03015503]
[1739303155235,5.1182,195.39,195.37,0.03015503]
[1739303155438,0.03578859,195.4,195.37,0.03015503]
[1739303157041,5.1184,195.38,195.37,0.03015503]
[1739303159050,0.03578859,195.4,195.37,0.03015503]
[1739303159247,5.1182,195.39,195.37,0.03015503]
[1739303159449,0.03578859,195.4,195.37,5.14885503]
[1739303159660,0.03578859,195.4,195.37,0.03015503]
[1739303162253,0.03578859,195.4,195.39,5.1182]
[1739303163958,0.03578859,195.4,195.39,19.22764564]
[1739303164554,5.1161,195.47,195.39,14.10944564]
[1739303164748,14.10944564,195.52,195.39,14.10944564]
[1739303164955,5.1169,195.44,195.39,14.10944564]
[1739303165152,5.1169,195.44,195.4,5.1177]
[1739303165458,5.1174,195.42,195.36,14.10944564]
[1739303165653,14.10944564,195.49,195.38,5.1183]
[1739303166054,0.03607444,195.45,195.42,0.03692919]
[1739303166546,5.1174,195.43,195.42,0.03692919]
[1739303166749,14.10944564,195.43,195.36,5.1189]
[1739303167158,5.1179,195.41,195.36,5.119]
[1739303167363,14.10944564,195.43,195.33,14.10944564]
[1739303167657,5.117,195.44,195.33,14.10944564]
[1739303167855,0.03699103,195.4,195.36,0.02901443]
[1739303168359,0.03699103,195.4,195.39,5.1182]
[1739303169554,0.03699103,195.4,195.38,5.1184]
[1739303170460,0.03699103,195.4,195.39,5.1182]
[1739303170859,0.03699103,195.4,195.36,14.13846007]
[1739303171049,0.03699103,195.4,195.36,0.02901443]
[1739303171459,5.1186,195.38,195.36,0.02901443]
[1739303171857,0.03699103,195.4,195.36,0.02901443]
[1739303172161,5.1184,195.39,195.36,0.02901443]
[1739303172555,0.03699103,195.4,195.36,0.02901443]
[1739303172755,5.1185,195.38,195.36,0.02901443]
[1739303172959,0.03699103,195.4,195.36,0.02901443]
[1739303174260,0.03699103,195.4,195.36,5.14781443]
[1739303174760,0.03699103,195.4,195.36,0.02901443]
[1739303174761,5.15499103,195.4,195.36,0.02901443]
[1739303175255,0.03699103,195.4,195.36,0.02901443]
[1739303176262,5.15509103,195.4,195.36,0.02901443]
[1739303176959,5.1187,195.37,195.31,5.34194]
[1739303177164,14.14643667,195.4,195.31,5.34194]
[1739303177165,1.4909,195.39,195.31,0.22164]
[1739303177365,5.1193,195.35,195.31,0.22164]
[1739303177960,1.4909,195.39,195.31,0.22164]
[1739303178161,0.0336729,195.35,195.32,5.12]
[1739303178364,0.0336729,195.35,195.31,0.22164]
[1739303179260,0.0336729,195.35,195.32,5.1199]
[1739303179464,0.0336729,195.35,195.3,14.10944564]
[1739303179766,5.1182,195.39,195.33,14.10944564]
[1739303179962,0.03596407,195.34,195.33,14.10944564]
[1739303180167,3.1945,195.42,195.33,14.10944564]
[1739303180361,5.1179,195.41,195.33,14.10944564]
[1739303180559,5.1179,195.41,195.36,14.10944564]
[1739303180856,0.03235881,195.39,195.38,5.1184]
[1739303181264,1.5746,195.47,195.36,14.10944564]
[1739303181454,0.03782126,195.4,195.36,14.10944564]
[1739303181659,0.03782126,195.4,195.33,22.63105642]
[1739303182465,5.1184,195.39,195.34,5.1193]
[1739303183064,0.03782126,195.4,195.34,5.1193]
[1739303183659,0.03782126,195.4,195.31,4.6941]
[1739303183863,5.1182,195.39,195.35,5.1191]
[1739303184269,0.03782126,195.4,195.31,4.6941]
[1739303184459,0.03782126,195.4,195.33,22.63105642]
[1739303186061,0.03782126,195.4,195.36,22.63105642]
[1739303186262,0.03782126,195.4,195.39,5.1182]
[1739303186764,5.1159,195.48,195.43,5.1169]
[1739303186959,3.0476,195.54,195.39,22.63105642]
[1739303187165,3.0476,195.54,195.4,2.979]
[1739303187464,3.0476,195.54,195.45,5.1164]
[1739303187658,3.0476,195.54,195.4,2.979]
[1739303187869,0.03266307,195.51,195.49,5.1155]
[1739303188062,0.03266307,195.51,195.48,0.03831929]
[1739303188567,0.03266307,195.51,195.49,5.1156]
[1739303189368,0.03266307,195.51,195.48,0.03831929]
[1739303189763,0.03266307,195.51,195.49,5.1153]
[1739303189962,0.03266307,195.51,195.48,0.03831929]
[1739303190267,0.03266307,195.51,195.5,5.1153]
[1739303191064,92.12,195.59,195.48,22.66937571]
[1739303191266,1.5056,195.6,195.54,5.1141]
[1739303191463,5.113,195.59,195.49,3.1042]
[1739303191667,174.16842102,195.63,195.49,3.1042]
[1739303191864,5.1122,195.62,195.57,5.1135]
[1739303192363,139.98097034,195.61,195.57,5.15238858]
[1739303192665,139.98097034,195.61,195.57,0.03888858]
[1739303193066,5.1129,195.6,195.57,0.03888858]
[1739303193265,139.98097034,195.61,195.57,0.03888858]
[1739303193561,5.113,195.59,195.57,0.03888858]
[1739303193867,139.98097034,195.61,195.57,0.03888858]
[1739303194068,5.1132,195.58,195.57,0.03888858]
[1739303195465,27.22215642,195.6,195.42,215.63105642]
[1739303195668,5.1142,195.55,195.43,4.5689]
[1739303195865,27.22215642,195.6,195.43,4.5689]
[1739303196068,22.63105642,195.57,195.43,4.5689]
[1739303196572,5.1146,195.53,195.46,5.1163]
[1739303196764,0.03596599,195.52,195.48,0.03225597]
[1739303199170,5.1154,195.5,195.48,0.03225597]
[1739303199768,5.1156,195.49,195.48,0.03225597]
[1739303201473,5.1166,195.46,195.4,5.1177]
[1739303201668,22.63105642,195.48,195.33,22.63105642]
[1739303202172,5.1166,195.45,195.33,22.63105642]
[1739303202672,0.03501834,195.41,195.39,5.118]
[1739303202971,22.63105642,195.48,195.33,22.63105642]
[1739303203171,0.03833513,195.42,195.39,5.1179]
[1739303203372,0.03833513,195.42,195.33,22.63105642]
[1739303203769,0.03833513,195.42,195.35,5.1191]
[1739303203973,0.03833513,195.42,195.33,22.63105642]
[1739303204767,0.03833513,195.42,195.41,5.1177]
[1739303205373,0.03833513,195.42,195.39,5.1179]
[1739303205576,0.03833513,195.42,195.33,22.63105642]
[1739303205777,0.03833513,195.42,195.31,4.4083]
[1739303206076,0.03833513,195.42,195.35,5.1191]
[1739303206275,0.03833513,195.42,195.31,4.4083]
[1739303206477,5.1183,195.39,195.35,5.1191]
[1739303206876,5.1183,195.39,195.31,4.4083]
[1739303207277,0.0386038,195.37,195.31,4.4083]
[1739303207881,0.0386038,195.37,195.35,5.1191]